{"text_format":"3","workbook":"xlsx","n_sheets":2,"sheets":["USO DELLA CARTELLA DI LAVORO","REGISTRO VALUTAZIONI"],"not_rendered":{"defined_names":7},"read":"whole","date_system":"1900"}

{"sheet":"USO DELLA CARTELLA DI LAVORO","index":0,"n_rows":10,"n_cols":2,"rows_kept":10}
[null,"ISTRUZIONI"]
[null,"Il foglio di lavoro REGISTRO VALUTAZIONI è utile per calcolare i voti, dove per ogni attività è disponibile un determinato numero di punti. "]
[null,"Istruzioni: assicurarsi di salvare copie di backup dei voti."]
[null,"1. Immettere il nome dell'istituto di istruzione, le informazioni sulla classe, i nomi degli studenti e gli ID degli studenti (facoltativo).   "]
[null,"2. Adattare la tabella dei voti e GPA in base al sistema di valutazione solitamente utilizzato."]
[null,"3. Immettere i nomi delle attività o dei test, ad esempio \"Test 1\", a partire dalla cella H8, con i punti disponibili per ogni attività. "]
[null,"4. Inserire i punteggi assegnati a ogni studente per ogni attività o test. Le colonne \"Media\", \"Punteggio\", \"Voto in lettere\" e \"GPA\" vengono calcolate automaticamente, ma possono essere ignorate se si preferisce. Per assegnare crediti extra, è sufficiente attribuire più punti per un'attività rispetto a quelli possibili indicati per tale attività."]
[null,"Usare il comando \"Area di stampa\" nel menu Layout di pagina per modificare i contenuti inclusi nella stampa."]
[null,"I punteggi per i voti si basano su una scala percentuale standard in base al numero totale di punti assegnati nelle righe 8 e 9. Adattare ogni attività o test ai punti desiderati, quindi adattare la percentuale in base al voto appropriato. Sovrascrivere le celle dei punteggi per apportare modifiche manualmente."]
[null,"Immettere ogni attività o test e i punti disponibili nelle celle da H8 a X9."]

{"sheet":"REGISTRO VALUTAZIONI","index":1,"n_rows":24,"n_cols":24,"rows_kept":24,"merged":[[1,1,2,6],[3,1,3,6],[4,1,6,6],[7,4,7,6],[8,4,8,6],[10,4,10,6],[11,4,11,6],[19,1,19,6],[20,1,20,2],[20,3,20,4],[21,1,21,2],[21,3,21,4],[22,1,22,2],[22,3,22,4],[23,1,23,2],[23,3,23,4]]}
[null,"NOME ISTITUTO"]
[null,"Nome docente"]
[{"$nulls":7},"Punteggio",{"$f":"I4*TotalPoints","v":118},120,126,134,140,{"v":145.6666666666666,"d":"146"},154,160,166,174,180,186,194]
[null,"Classe/progetto",{"$nulls":5},"%",{"v":0.59,"d":"59%"},{"v":0.6,"d":"60%"},{"v":0.63,"d":"63%"},{"v":0.67,"d":"67%"},{"v":0.7,"d":"70%"},{"v":0.728333333333333,"d":"73%"},{"v":0.77,"d":"77%"},{"v":0.8,"d":"80%"},{"v":0.83,"d":"83%"},{"v":0.87,"d":"87%"},{"v":0.9,"d":"90%"},{"v":0.93,"d":"93%"},{"v":0.97,"d":"97%"}]
[null,"Anno/semestre/trimestre",{"$nulls":5},"Voto in lettere","F","D-","D","D+","C-","C","C+","B-","B","B+","A-","A","A+"]
[{"$nulls":7},"GPA",0,0.67,1,1.33,1.67,2,2.33,2.67,3,3.33,3.67,4,4]
[]
[{"$nulls":4},"Nome attività o test",null,null,"Compito1","Compito2","T1"]
[{"$nulls":4},"Totale punti disponibili:",null,null,50,50,100]
[]
[{"$nulls":4},"Numero totale di attività e test:",null,null,{"$f":"COUNTA(H8:X8)","v":3}]
[{"$nulls":4},"Totale punti possibili:",null,null,{"$f":"SUM(H9:X9)","v":200}]
[]
[null,"Nome studente","ID studente","Media","Punteggio","Voto in lettere","GPA","Colonna6","Colonna7","Colonna8","Colonna9","Colonna10","Colonna11","Colonna12","Colonna13","Colonna14","Colonna15","Colonna16","Colonna17","Colonna18","Colonna19","Colonna20","Colonna21","Colonna22"]
[null,"Studente n. 1",null,{"$f":"IFERROR(IF(COUNT(Voti[[#This Row],[Colonna6]:[Colonna22]])=0,\"\",SUM(Voti[[#This Row],[Colonna6]:[Colonna22]])/TotalPoints),\"\")","v":{"v":0.91,"d":"91.0%"}},{"$f":"IF(COUNT(Voti[[#This Row],[Colonna6]:[Colonna22]])=0,\"\",SUM(Voti[[#This Row],[Colonna6]:[Colonna22]]))","v":182},{"$f":"IFERROR(IF(Voti[[#This Row],[Media]]<>\"\",HLOOKUP(Voti[[#This Row],[Media]]*TotalPoints,GradeTable,3),\"\"),0)","v":"A-"},{"$f":"IFERROR(IF(Voti[[#This Row],[Media]]<>\"\",HLOOKUP(Voti[[#This Row],[Media]]*TotalPoints,GradeTable,4),\"\"),0)","v":3.67},45,45,92]
[null,"Studente n. 2",null,{"$f":"IFERROR(IF(COUNT(Voti[[#This Row],[Colonna6]:[Colonna22]])=0,\"\",SUM(Voti[[#This Row],[Colonna6]:[Colonna22]])/TotalPoints),\"\")","v":{"v":1,"d":"100.0%"}},{"$f":"IF(COUNT(Voti[[#This Row],[Colonna6]:[Colonna22]])=0,\"\",SUM(Voti[[#This Row],[Colonna6]:[Colonna22]]))","v":200},{"$f":"IFERROR(IF(Voti[[#This Row],[Media]]<>\"\",HLOOKUP(Voti[[#This Row],[Media]]*TotalPoints,GradeTable,3),\"\"),0)","v":"A+"},{"$f":"IFERROR(IF(Voti[[#This Row],[Media]]<>\"\",HLOOKUP(Voti[[#This Row],[Media]]*TotalPoints,GradeTable,4),\"\"),0)","v":{"v":4,"d":"4.00"}},50,50,100]
[{"$nulls":3},{"$f":"IFERROR(IF(COUNT(Voti[[#This Row],[Colonna6]:[Colonna22]])=0,\"\",SUM(Voti[[#This Row],[Colonna6]:[Colonna22]])/TotalPoints),\"\")","v":""},{"$f":"IF(COUNT(Voti[[#This Row],[Colonna6]:[Colonna22]])=0,\"\",SUM(Voti[[#This Row],[Colonna6]:[Colonna22]]))","v":""},{"$f":"IFERROR(IF(Voti[[#This Row],[Media]]<>\"\",HLOOKUP(Voti[[#This Row],[Media]]*TotalPoints,GradeTable,3),\"\"),0)","v":""},{"$f":"IFERROR(IF(Voti[[#This Row],[Media]]<>\"\",HLOOKUP(Voti[[#This Row],[Media]]*TotalPoints,GradeTable,4),\"\"),0)","v":""}]
[{"$nulls":3},{"$f":"IFERROR(IF(COUNT(Voti[[#This Row],[Colonna6]:[Colonna22]])=0,\"\",SUM(Voti[[#This Row],[Colonna6]:[Colonna22]])/TotalPoints),\"\")","v":""},{"$f":"IF(COUNT(Voti[[#This Row],[Colonna6]:[Colonna22]])=0,\"\",SUM(Voti[[#This Row],[Colonna6]:[Colonna22]]))","v":""},{"$f":"IFERROR(IF(Voti[[#This Row],[Media]]<>\"\",HLOOKUP(Voti[[#This Row],[Media]]*TotalPoints,GradeTable,3),\"\"),0)","v":""},{"$f":"IFERROR(IF(Voti[[#This Row],[Media]]<>\"\",HLOOKUP(Voti[[#This Row],[Media]]*TotalPoints,GradeTable,4),\"\"),0)","v":""}]
[{"$nulls":3},{"$f":"IFERROR(IF(COUNT(Voti[[#This Row],[Colonna6]:[Colonna22]])=0,\"\",SUM(Voti[[#This Row],[Colonna6]:[Colonna22]])/TotalPoints),\"\")","v":""},{"$f":"IF(COUNT(Voti[[#This Row],[Colonna6]:[Colonna22]])=0,\"\",SUM(Voti[[#This Row],[Colonna6]:[Colonna22]]))","v":""},{"$f":"IFERROR(IF(Voti[[#This Row],[Media]]<>\"\",HLOOKUP(Voti[[#This Row],[Media]]*TotalPoints,GradeTable,3),\"\"),0)","v":""},{"$f":"IFERROR(IF(Voti[[#This Row],[Media]]<>\"\",HLOOKUP(Voti[[#This Row],[Media]]*TotalPoints,GradeTable,4),\"\"),0)","v":""}]
[]
[null,"Riepilogo della classe",null,"Media",null,"Voto in lettere","GPA","","","","","","","","","","",""]
[null," Media",null,{"$f":"IFERROR(AVERAGE(Voti[[#All],[Media]]),0)","v":{"v":0.9550000000000001,"d":"95.5%"}},null,{"$f":"IFERROR(HLOOKUP(D22*TotalPoints,GradeTable,3),\"\")","v":"A"},{"$f":"IFERROR(AVERAGE(Voti[[#All],[GPA]]),0)","v":{"v":3.835,"d":"3.84"}},"","","","","","","","","","","","","","","","",""]
[null," Punteggio più alto",null,{"$f":"IFERROR(MAX(Voti[[#All],[Media]]),0)","v":{"v":1,"d":"100.0%"}},null,{"$f":"IFERROR(HLOOKUP(D23*TotalPoints,GradeTable,3),\"\")","v":"A+"},{"$f":"IFERROR(MAX(Voti[[#All],[GPA]]),0)","v":{"v":4,"d":"4.00"}},"","","","","","","","","","","","","","","","",""]
[null," Punteggio più basso",null,{"$f":"IFERROR(MIN(Voti[[#All],[Media]]),0)","v":{"v":0.91,"d":"91.0%"}},null,{"$f":"IFERROR(HLOOKUP(D24*TotalPoints,GradeTable,3),\"\")","v":"A-"},{"$f":"IFERROR(MIN(Voti[[#All],[GPA]]),0)","v":3.67},"","","","","","","","","","","","","","","","",""]